Cogmind - Beta 12 @@@ ROGUE MODE // 2023.10.06 @ 07:03:20 Player: maid Result: Destroyed by G-34 Mercenary with Small Laser Performance ------------- Evolutions (0) 0 Regions Visited (1) 200 Robots Destroyed (5) 25 Value Destroyed (98) 98 Prototype IDs (2) 40 Alien Tech Used (0) 0 Bonus (0) 0 TOTAL SCORE: 363 Bonus ------- None Cogmind --------- Core Integrity 0/250 Matter 295/300 Energy 99/100 System Corruption 0% Temperature Cool (17) Movement Core (200) Ox3 Location -10/Materials Parts ------- > --- POWER (1) -------- (None) > --- PROPULSION (2) --- (None) > --- UTILITY (2) ------ Medium Storage Unit > --- WEAPON (2) ------- (None) > --- INVENTORY (10) --- Ion Engine Light Ion Engine Wheel Wheel Large Storage Unit Grenade Launcher Peak State ------------ > --- POWER ------------ Ion Engine > --- PROPULSION ------- Aluminum Leg Aluminum Leg > --- UTILITY ---------- Small Storage Unit Medium Storage Unit > --- WEAPON ----------- EM Pulse Gun Small Laser > --- INVENTORY -------- Ion Engine Light Ion Engine Wheel Wheel Grenade Launcher [Rating: 7] Favorites ----------- Power Ion Engine Engine Ion Engine Propulsion Aluminum Leg Leg Aluminum Leg Utility Small Storage Unit Storage Small Storage Unit Weapon Small Laser Energy Gun Small Laser Build | -11 -10 ------- Run | Jun Mat Slots Evolved . | . . Power . | . . Propulsion . | . . Utility . | . . Weapon . | . . Parts Attached 10 | 6 4 Power 1 | 1 . Engine 1 | 1 . Core . | . . Reactor . | . . Propulsion 2 | 2 . Treads . | . . Leg 2 | 2 . Wheel . | . . Hover . | . . Flight . | . . Utility 4 | 1 3 Device . | . . Storage 4 | 1 3 Processor . | . . Hackware . | . . Protection . | . . Artifact . | . . Weapon 3 | 2 1 Energy Gun 3 | 2 1 Energy Cannon . | . . Ballistic Gun . | . . Ballistic Cannon . | . . Launcher . | . . Special Weapon . | . . Impact Weapon . | . . Slashing Weapon . | . . Piercing Weapon . | . . Special Melee Weapon . | . . Unidentified Prototypes . | . . Parts Lost 6 | . 6 Power 1 | . 1 Propulsion 2 | . 2 Utility . | . . Weapon 3 | . 3 Highest Loss Streak 6 | . 6 To Critical Strikes . | . . Average Slot Usage (%) 82 | . 82 Engine 13 | . 13 Leg 26 | . 26 Storage 14 | . 14 Energy Gun 27 | . 27 Naked Turns . | . . Heaviest Build 28 | 13 28 Greatest Support 20 | 20 20 Greatest Overweight (x) 3 | 3 3 Average Overweight (x) . | . . Largest Inventory Capacity 15 | 8 15 Average Capacity 9 | 7 9 Most Carried 6 | 3 6 Average Carried 4 | 1 5 Final Capacity 10 | 8 10 Final Carried 6 | 3 6 Class Distribution -------------------- 100% | Mutant Dominant Class ---------------- Mutant | -10/Materials Resources | -11 -10 ----------- Run | Jun Mat Matter Collected 260 | 250 10 Remotely . | . . Salvage Created 144 | . 144 Parts 10 | . 10 Haulers Intercepted . | . . Recyclers Shooed . | . . Parts Field Recycled . | . . Retrieved Matter . | . . Parts Self-Destructed . | . . Prevented . | . . Kills | -11 -10 ------- Run | Jun Mat Combat Hostiles Destroyed 5 | . 5 Guns 5 | . 5 Classes Destroyed 2 | . 2 Swarmer 3 | . 3 Grunt 2 | . 2 Best Kill Streak 3 | . 3 Combat Bots Only 3 | . 3 Max Kills in Single Turn 1 | . 1 Gunslinging . | . . Exploded . | . . Melee . | . . Uniques/NPCs Destroyed . | . . Combat | -11 -10 -------- Run | Jun Mat Damage Taken 773 | . 773 Core 260 | . 260 Absorbed by Shields . | . . Core Remaining (%) 100 | 100 . Volleys Fired 18 | . 18 Largest 2 | . 2 Hottest 80 | . 80 Shots Fired 32 | . 32 Gun 32 | . 32 Cannon . | . . Launcher . | . . Special . | . . Kinetic . | . . Thermal 18 | . 18 Explosive . | . . Electromagnetic 14 | . 14 Robot Hit Streak 8 | . 8 Robot Miss Streak 3 | . 3 Penetration Max . | . . Secondary Targets . | . . Shots Hit Robots 20 | . 20 Core Hits 9 | . 9 Critical Kills . | . . Critical Parts Destroyed . | . . Critical Strikes 1 | . 1 Corrupt 1 | . 1 Melee Attacks . | . . Impact . | . . Slashing . | . . Piercing . | . . Sneak Attacks . | . . Combat Hostiles . | . . Follow-up Attacks . | . . Damage Inflicted 254 | . 254 Guns 245 | . 245 Cannons . | . . Explosions . | . . Melee . | . . Ramming 9 | . 9 Kinetic . | . . Thermal 117 | . 117 Explosive . | . . Electromagnetic 128 | . 128 Impact . | . . Slashing . | . . Piercing . | . . Highest Corruption . | . . Average Corruption . | . . Corruption Purged . | . . Corruption Blocked . | . . Overload Shots . | . . Overflow Damage . | . . Projectiles . | . . Explosions . | . . Melee . | . . Knockbacks . | . . Impact . | . . Kinetic . | . . Secondary . | . . Self-Inflicted Damage 1 | . 1 Shots . | . . Rammed 2 | . 2 Targets Rammed 4 | . 4 Kicked 2 | . 2 Crushed . | . . Highest Temperature 171 | . 171 Average Temperature 67 | . 67 Received Heat Transfer 327 | . 327 Siege Activations . | . . Robots Corrupted . | . . Combat Hostiles . | . . Parts Fried 1 | . 1 Impact Corruptions . | . . Robots Melted . | . . Combat Hostiles . | . . Parts Melted . | . . Heat Transferred 250 | . 250 Parts Sabotaged . | . . Parts Stolen . | . . Parts Stripped . | . . Power Chain Reactions . | . . Missiles Intercepted . | . . Alert | -11 -10 ------- Run | Jun Mat Peak Influence 110 | . 110 Initial . | . . Average 55 | . 67 Maximum Alert Level . | . . Low Security (%) 100 | 100 100 Level 1 . | . . Level 2 . | . . Level 3 . | . . Level 4 . | . . Level 5 . | . . High Security . | . . Max Security . | . . Squads Dispatched 1 | . 1 Investigation . | . . Extermination . | . . Reinforcement 1 | . 1 Assault . | . . Garrison . | . . Intercept . | . . Searches Triggered . | . . Construction Impeded . | . . Haulers Reinforced . | . . Active Scanning Responses . | . . Cargo Convoy Interrupts . | . . Stealth | -11 -10 --------- Run | Jun Mat Distress Signals . | . . Communications Jammed . | . . Distress Signals . | . . Times Spotted 12 | . 12 Peak Tracking Total 5 | . 5 Tactical Retreats . | . . Traps | -11 -10 ------- Run | Jun Mat Traps Triggered . | . . Indirectly . | . . Trap Hack Attempts . | . . Triggered . | . . Disarmed . | . . Reprogrammed . | . . Reused . | . . Traps Extracted . | . . Installed . | . . Triggered . | . . Machines | -11 -10 ---------- Run | Jun Mat Machines Disabled . | . . Max in Single Turn . | . . Machines Repaired . | . . Machines Sabotaged . | . . Overloaded Fab Kills . | . . Hacking | -11 -10 --------- Run | Jun Mat Machines Accessed 2 | . 2 Terminals 2 | . 2 Fabricators . | . . Repair Stations . | . . Recycling Units . | . . Scanalyzers . | . . Garrison Access . | . . Total Hacks 9 | . 9 Successful 3 | . 3 Failed 6 | . 6 Catastrophic . | . . Database Lockouts . | . . Manual . | . . Terminals 9 | . 9 Fabricators . | . . Repair Stations . | . . Recycling Units . | . . Scanalyzers . | . . Garrison Access . | . . Terminal Hacks 3 | . 3 Robot Analysis 1 | . 1 Prototype ID Bank 1 | . 1 Terminal Index 1 | . 1 Fabricator Hacks . | . . Repair Station Hacks . | . . Recycling Unit Hacks . | . . Scanalyzer . | . . Garrison Access Hacks . | . . Unauthorized Hacks . | . . Terminals . | . . Fabricators . | . . Repair Stations . | . . Recycling Units . | . . Scanalyzers . | . . Garrison Access . | . . Data Cores Recovered . | . . Used . | . . Hacking Detections 2 | . 2 Full Trace Events . | . . Feedback Events . | . . Feedback Blocked . | . . Robot Schematics Acquired . | . . Robots Built . | . . Authchips . | . . Time . | . . Total Robot Build Rating . | . . Part Schematics Acquired . | . . Parts Built . | . . Authchips . | . . Time . | . . Total Part Build Rating . | . . Parts Repaired . | . . Time . | . . Parts Recycled . | . . Recycled Matter . | . . Retrieved Matter . | . . Retrieved Components . | . . Parts Scanalyzed . | . . Part Schematics Acquired . | . . Parts Damaged . | . . Bothacking | -11 -10 ------------ Run | Jun Mat Used RIF Installer . | . . Robots Hacked . | . . Non-combat . | . . Combat . | . . Robot Hacks Applied . | . . Relay Couplers Released . | . . Fabnet Peak Effective % . | . . Robots Rewired . | . . Allies Hacked . | . . Hacks Repelled . | . . Allies | -11 -10 -------- Run | Jun Mat Total Allies . | . . Largest Group . | . . Highest-Rated Group . | . . Highest-Rated Ally . | . . Total Orders . | . . Ally Attacks . | . . Total Damage . | . . Kills . | . . Allies Corrupted . | . . Allies Melted . | . . Intel | -11 -10 ------- Run | Jun Mat Robot Analysis Total 1 | . 1 Derelict Logs Recovered . | . . Drone Launches . | . . Drone Recoveries . | . . Exploration | -11 -10 ------------- Run | Jun Mat Turns Passed 634 | 110 524 Spaces Moved 406 | 82 324 Core 15 | 11 4 Treads . | . . Legs 391 | 71 320 Wheels . | . . Hover . | . . Flight . | . . Fastest Speed 50 | 50 120 Average Speed 126 | 118 128 Slowest Speed 200 | 200 200 Overloaded Moves . | . . Propulsion Burnouts . | . . Robots Hopped . | . . Cave-ins Triggered . | . . Exploration Rate (%) 24 | 6 42 Regions Visited 1 Branch Regions . Pre-discovered Areas . | . . Known Exits Taken . | . . Unknown Exits Taken 1 | 1 . Scrap Searched . | . . Spaces Dug . | . . Terrain Destroyed . | . . Melee . | . . Projectile . | . . AOE . | . . Terrain Rammed . | . . Walls Destroyed . | . . Machines Disabled . | . . Actions | -11 -10 --------- Run | Jun Mat Total 488 | 92 396 Wait 44 | 2 42 Move 405 | 81 324 Hop . | . . Pick Up 5 | 3 2 Fast Attach 9 | 6 3 Attach . | . . Detach 1 | . 1 Swap 1 | . 1 Drop 1 | . 1 Fire 18 | . 18 Melee . | . . Ram 2 | . 2 Kick 2 | . 2 Crush . | . . Escape Stasis . | . . Rewire . | . . Trap . | . . Miscellaneous . | . . Route ------- -11/Junkyard -10/Materials (discovered 1 exit: [*Mat]) History --------- Turn | Location | Event 13 | -11/Junkyard | Discovered new exit (range 16) 111 | -11/Junkyard | Entered Materials 302 | -10/Materials | Build established: Mutant 353 | -10/Materials | Discovered new exit (range 13) 625 | -10/Materials | Core integrity fell below 50% 632 | -10/Materials | Core integrity fell below 20% 635 | -10/Materials | Destroyed by G-34 Mercenary with Small Laser Last Messages --------------- >>Prototypes Downloading prototype IDs... Imp. EM Shotgun Hvy. Ion Engine >>Index(Terminals) Found 8 terminals. Downloaded coordinate data. K-01 Serf cleans the Purification Channel. ALERT: Hostiles spotted, dispatching reinforcements to Terminal M004. G-34 Mercenary destroyed. Aluminum Leg destroyed. EM Pulse Gun destroyed. Sml. Laser destroyed. Ion Engine destroyed. Kicked G-47 Trooper. Aluminum Leg destroyed. Slammed into G-47 Trooper. Acquired Sml. Laser. Sml. Laser destroyed. G-47 Trooper destroyed. Map ----- +----------------------------------------------------+ | | | | | | | #########????????????????????????????????????????? | | === #????????????????????????????????????????? | | == """ #????????????????????????????????????????? | | == """ #????????????????????????????????????????? | | """ #####????????????????????????????????????? | | # #????????????????????????????????????? | | ##+###### < #????????????????????????????????????? | | #????????????????????????????????????? | | ###### ########?????????????????????????????? | | ####????#^ ^ #?????????????????????????????? | | #???????# ###???????????????????????????? | | #???????# ""#???????????????????????????? | | #???????# T"#?????????+#????????????????? | | #???????# ^" ""#???????## ###??????????????? | | #???????# """ ########### #?????????? | | #?????### """ +?????????? | | ####??#"" """ #####g##### #????????????????? | | #??#"" "" ## #?# #????????????????? | | #??#"T """ ## g%### +????????????????? | | ! #??#"" "" ## g!+% #????????????????? | | #??#"" """ ## =%g### #????????????????? | | ######### " ## ! #?# #????????????????? | | ## @ #?# #????????????????? | | ## #?# #????????????????? | | ############"T"# ## #?# #????????????????? | | #???????##### ## #?# #????????????????? | | #???????????# ## #?# #????????????????? | | #???????????# ## #?# #????????????????? | | #???????????# ## #?? #????????????????? | | #?????####### ## #?? #????????????????? | | ####?????# # ######+#### #????????????????? | | ########## #????????????????? | | #????????????????? | | #????????????????? | | ##########+### #????????????????? | | ########### ##?# #? #????????????????? | | ??????????# #??# #?? #????????????????? | | ??????????# #??# """ """ #??? #????????????????? | | ??????????# #??# """ """ #???? ????????????????? | | ??????????# #??# """ """ #????? ???????????????? | | ??????????# #??# +?????? ??????????????? | | ??????????# #??# #??????? ?????????????? | | ??????????# #??# #?????????????????????? | | ??????????# #??###########?????????????????????? | | ??????????# #??????????????????????????????????? | | ??????????# #??????????????????????????????????? | | ??????????# #??????????????????????????????????? | +----------------------------------------------------+ Best States ------------- Heat Dissipation 25 Energy Generation 10 Energy Capacity 250 Matter Stores 300 Matter Capacity 300 Sight Range 16 Terrain Scan Density 10 Evasion (%) 55 Item Schematics ----------------- None Robot Schematics ------------------ None Fabricated ------------ Nothing Alien Tech Used ----------------- None Achievements -------------- None Challenges ------------ None Game ------ Seed DerelictRecyclingCleaver Manual? 0 Play Time 00:07:33 Cumulative 1.9 hours Start 2023.10.06 @ 06:55:40 End 2023.10.06 @ 07:03:20 Sessions 1 Manual Loads 0 Difficulty Rogue Special Mode None Game No. 5 Rogue 5 Adventurer 0 Explorer 0 Win Type - Total 0 Types 0/0/0/0/0/0/0/0/0 Lore% 3 Gallery% 3 Achievement% 4 Wizard Run 0 Options --------- ASCII 0 Keyboard 0 Movement Vi Keybinds 0 Fullscreen 2 Font 18/SmallcapsGlow Map View 76x50 Tactical HUD 0 Map Filters NONE Filters NONE Steam 1 RUN: e07e9011-6172-4dee-9138-fdfd9ab67f74